bitfinex-derivatives/quotes_BTCF0:USTF0_20260131
["timestamp","ask_amount","ask_price","bid_price","bid_amount"]
[1769876770013,0.17639118,81585.0,81499.0,0.00012287]
[1769876770014,0.17639118,81585.0,81530.0,0.0994]
[1769876770207,0.012277,81574.0,81531.0,0.0994]
[1769876770414,0.061386,81577.0,81506.0,0.42251988]
[1769876770610,0.012279,81563.0,81509.0,0.28913758]
[1769876770915,0.18396,81551.0,81507.0,1.4e-07]
[1769876771107,0.061385,81579.0,81478.0,0.0964]
[1769876771108,0.012288,81502.0,81478.0,0.0964]
[1769876771304,0.012288,81502.0,81442.0,0.99428]
[1769876771305,0.061454,81487.0,81409.0,0.27697345]
[1769876771611,0.41615646,81501.0,81434.0,0.27697345]
[1769876771911,0.012292,81478.0,81425.0,0.27697345]
[1769876772114,0.12274833,81500.0,81455.0,0.27697345]
[1769876772411,0.012286,81517.0,81467.0,0.27697345]
[1769876772710,0.09944,81543.0,81456.0,0.96287547]
[1769876772711,0.00011814,81516.0,81474.0,0.2607099]
[1769876772908,0.09944,81543.0,81485.0,0.26059176]
[1769876773113,0.29351125,81535.0,81475.0,0.14185999]
[1769876773318,0.29351125,81535.0,81486.0,0.12271143]
[1769876773611,0.012284,81527.0,81476.0,0.27288376]
[1769876773816,0.29351125,81523.0,81461.0,0.26059176]
[1769876774109,0.012288,81504.0,81461.0,0.26059176]
[1769876774411,0.29351125,81498.0,81457.0,0.09944]
[1769876774604,0.29351125,81498.0,81436.0,0.00011829]
[1769876774605,0.012292,81478.0,81448.0,0.09944]
[1769876774913,0.23986982,81461.0,81437.0,0.12269712]
[1769876775111,0.23986982,81461.0,81416.0,0.34816]
[1769876775112,0.012297,81443.0,81397.0,0.27620424]
[1769876775310,0.23986982,81445.0,81399.0,0.27620424]
[1769876775615,0.012291,81482.0,81431.0,0.012299]
[1769876775820,0.01229,81488.0,81434.0,0.012298]
[1769876776012,0.01229,81488.0,81436.0,0.012298]
[1769876776313,0.12276491,81485.0,81441.0,0.012297]
[1769876776615,0.09944,81498.0,81441.0,0.012297]
[1769876776616,0.18467844,81484.0,81441.0,0.012297]
[1769876776806,0.09944,81498.0,81398.0,0.02067257]
[1769876776807,0.29351125,81462.0,81398.0,0.02067257]
[1769876777011,0.061476,81458.0,81403.0,0.09948]
[1769876777207,0.012298,81438.0,81403.0,0.09948]
[1769876777408,0.012298,81435.0,81403.0,0.09948]
[1769876777607,4.4e-07,81434.0,81417.0,0.12275586]
[1769876777814,0.35973643,81477.0,81428.0,0.012299]
[1769876778014,0.012291,81486.0,81433.0,0.012298]
[1769876778326,0.12281164,81495.0,81449.0,0.012296]
[1769876778513,0.29999999,81505.0,81454.0,0.012295]
[1769876778722,0.29992106,81502.0,81454.0,0.012295]
[1769876779011,0.29999999,81505.0,81450.0,0.09948]
[1769876779012,0.12281164,81504.0,81464.0,0.012294]
[1769876779214,0.29992106,81506.0,81469.0,0.012293]
[1769876779417,0.29992106,81522.0,81469.0,0.34788]
[1769876779616,0.29992106,81522.0,81470.0,0.25960808]
[1769876779813,0.29992106,81530.0,81486.0,0.012291]
[1769876780114,0.29992106,81540.0,81501.0,0.012288]
[1769876780306,0.35973643,81554.0,81487.0,0.62717498]
[1769876780307,0.29992106,81547.0,81487.0,0.62717498]
[1769876780509,0.29992106,81558.0,81516.0,0.012286]
[1769876780707,0.65973643,81568.0,81516.0,0.012286]
[1769876780708,0.29992106,81559.0,81525.0,0.012285]
[1769876780912,0.29692106,81567.0,81530.0,0.00545835]
[1769876781116,0.35973643,81578.0,81530.0,0.00545835]
[1769876781314,0.35973643,81581.0,81536.0,0.012283]
[1769876781510,0.37201243,81581.0,81534.0,0.012283]
[1769876781718,0.012277,81576.0,81530.0,0.00545835]
[1769876782016,0.18396,81577.0,81535.0,0.1226437]
[1769876782221,0.18396,81566.0,81526.0,0.09952]
[1769876782415,0.18396,81550.0,81526.0,0.09952]
[1769876782610,0.18396,81554.0,81526.0,0.09952]
[1769876782916,0.18396,81554.0,81498.0,0.00545835]
[1769876782917,0.012283,81539.0,81508.0,0.09948]
[1769876783308,0.18396,81537.0,81508.0,0.22211919]
[1769876783510,0.35973643,81546.0,81508.0,0.09948]
[1769876783713,0.18396,81546.0,81508.0,0.09948]
[1769876784121,0.18396,81545.0,81508.0,0.09948]
[1769876784418,0.18396,81539.0,81508.0,0.09948]
[1769876784919,0.31134812,81547.0,81508.0,0.09948]
[1769876785122,0.012282,81543.0,81509.0,0.09948]
[1769876785521,0.24148173,81531.0,81509.0,0.09948]
[1769876786128,0.29906712,81547.0,81496.0,0.09948]
[1769876786129,0.012285,81523.0,81496.0,0.09948]
[1769876786420,0.012284,81529.0,81496.0,0.09948]
[1769876786616,0.24148173,81534.0,81496.0,0.09948]
[1769876786825,0.196243,81539.0,81499.0,0.00559633]
[1769876787025,0.012284,81527.0,81497.0,0.12266928]
[1769876787316,0.012286,81514.0,81430.0,0.012299]
[1769876787523,0.24148173,81516.0,81474.0,0.09948]
[1769876787719,0.24148173,81513.0,81479.0,0.1226768]
[1769876787914,0.24148173,81511.0,81474.0,0.09948]
[1769876788112,0.012288,81504.0,81474.0,0.09948]
[1769876788313,0.24148173,81512.0,81479.0,0.00559633]
[1769876788518,0.24148173,81523.0,81479.0,0.00559633]
[1769876788821,0.24148173,81526.0,81483.0,0.00916779]
[1769876789024,0.24148173,81523.0,81483.0,0.00916779]
[1769876789219,0.24148173,81521.0,81483.0,0.00916779]
[1769876789426,0.24148173,81524.0,81486.0,0.00916779]
[1769876789825,0.18438972,81523.0,81486.0,0.00916779]
[1769876790022,0.18438972,81522.0,81487.0,0.12269788]
[1769876790226,0.18438972,81521.0,81488.0,0.00916779]
[1769876790424,0.18438972,81520.0,81488.0,0.00916779]
[1769876790623,0.18438972,81519.0,81488.0,0.00916779]
[1769876790825,0.18438972,81518.0,81489.0,0.12269185]
[1769876791022,0.18438972,81517.0,81489.0,0.12269185]
[1769876791327,0.18438972,81516.0,81489.0,0.13581874]
[1769876791528,0.18438972,81515.0,81489.0,0.13581874]
[1769876791716,0.18438972,81514.0,81489.0,0.01312689]
[1769876791915,0.18438972,81513.0,81490.0,0.12269411]
[1769876792121,0.18438972,81512.0,81490.0,0.12269411]
[1769876792418,0.18438972,81511.0,81488.0,0.001]
[1769876792616,0.18438972,81510.0,81488.0,0.001]
[1769876792814,0.18438972,81509.0,81488.0,0.001]
[1769876793027,0.18438972,81508.0,81485.0,0.012291]
[1769876793223,0.18438972,81507.0,81490.0,0.001]
[1769876793425,0.18438972,81506.0,81490.0,0.001]
[1769876793628,0.18438972,81505.0,81490.0,0.001]
[1769876793927,0.18438972,81504.0,81491.0,0.12270089]
[1769876794127,0.18438972,81503.0,81491.0,0.12270089]
[1769876794330,0.18438972,81502.0,81491.0,0.12270089]
[1769876794625,0.012285,81525.0,81491.0,0.12270089]
[1769876794829,0.18396,81523.0,81491.0,0.12270089]
[1769876795329,0.18396,81521.0,81491.0,0.12270089]
[1769876795528,0.18396,81522.0,81491.0,0.12270089]
[1769876795723,0.012284,81530.0,81489.0,0.00965747]
[1769876795924,0.24148173,81539.0,81490.0,0.00965747]
[1769876796224,0.35973643,81563.0,81490.0,0.00965747]
[1769876796225,0.24148173,81529.0,81490.0,0.00965747]
[1769876796428,0.012284,81530.0,81490.0,0.00965747]
[1769876796429,0.24148173,81528.0,81490.0,0.00965747]
[1769876796628,0.18396,81525.0,81491.0,0.12268508]
[1769876796830,0.18396,81524.0,81491.0,0.12268508]
[1769876797025,0.24148173,81524.0,81491.0,0.12268508]
[1769876797324,0.24148173,81523.0,81493.0,0.012289]
[1769876797628,0.24148173,81523.0,81485.0,0.09952]
[1769876797629,0.012286,81516.0,81485.0,0.09952]
[1769876797820,0.18396,81510.0,81485.0,0.09952]
[1769876798025,0.18396,81506.0,81487.0,0.12268734]
[1769876798220,0.18396,81506.0,81485.0,0.09952]
[1769876798221,0.18396,81504.0,81490.0,0.001]
[1769876798428,0.18396,81508.0,81490.0,0.001]
[1769876798626,0.18396,81501.0,81490.0,0.001]
[1769876798827,0.18396,81500.0,81490.0,0.001]
[1769876799025,0.30274163,81524.0,81473.0,0.00010948]
[1769876799026,0.18396,81491.0,81473.0,0.00010948]
[1769876799333,0.18385052,81480.0,81446.0,0.0129037]
[1769876799535,0.18385052,81480.0,81404.0,0.005]
[1769876799536,0.30274163,81514.0,81492.0,0.01229]
[1769876799724,0.30274163,81538.0,81494.0,0.0129037]
[1769876799921,0.09952,81544.0,81510.0,0.012287]
[1769876800130,0.09952,81544.0,81498.0,0.0129037]
[1769876800131,0.00010948,81543.0,81506.0,0.012288]
[1769876800526,0.00010948,81543.0,81507.0,0.1226753]
[1769876800927,0.012282,81541.0,81506.0,0.012288]
[1769876801128,0.012282,81541.0,81508.0,0.012287]
[1769876801329,0.00010948,81543.0,81508.0,0.012287]
[1769876801725,0.00010948,81543.0,81493.0,0.09952]
[1769876801726,0.00010948,81543.0,81510.0,0.01120764]
[1769876801927,0.00010948,81543.0,81519.0,0.012285]
[1769876802122,0.00010948,81543.0,81522.0,0.012285]
[1769876802330,0.00010948,81543.0,81520.0,0.1226595]
[1769876802532,0.29637359,81543.0,81497.0,0.01120764]
[1769876802738,0.29637359,81543.0,81512.0,0.012287]
[1769876803636,0.29637359,81543.0,81516.0,0.012286]
[1769876804730,0.29737359,81543.0,81516.0,0.012286]
[1769876805636,0.012284,81532.0,81496.0,0.012289]
[1769876805828,0.30804846,81518.0,81482.0,0.012291]
[1769876806032,0.29586767,81517.0,81472.0,0.0483184]
[1769876806226,0.29576246,81502.0,81471.0,0.16543401]
[1769876806427,0.17258597,81501.0,81490.0,0.01229]
[1769876806738,9.7e-07,81501.0,81476.0,0.012292]
[1769876806933,9.7e-07,81501.0,81491.0,0.12267831]
[1769876807133,0.09948,81518.0,81491.0,0.12267831]
[1769876807339,0.09948,81518.0,81471.0,0.27047671]
[1769876807538,0.09948,81518.0,81486.0,0.012291]
[1769876807840,0.39524246,81518.0,81486.0,0.012291]
[1769876808343,0.39524246,81518.0,81471.0,0.27047671]
[1769876808344,0.30274163,81515.0,81488.0,0.01229]
[1769876808541,0.30274163,81515.0,81471.0,0.27047671]
[1769876808840,0.30274163,81515.0,81484.0,0.12269637]
[1769876809140,0.30274163,81515.0,81471.0,0.27047671]
[1769876809141,0.30274163,81507.0,81471.0,0.27047671]
[1769876809334,0.30274163,81509.0,81471.0,0.27047671]
[1769876809530,0.24460554,81502.0,81485.0,0.12270089]
[1769876809733,0.24460554,81502.0,81471.0,0.27047671]
[1769876809929,0.24460554,81500.0,81483.0,0.01244584]
[1769876810139,0.24460554,81501.0,81483.0,0.01244584]
[1769876810342,0.24460554,81501.0,81483.0,0.00015484]
[1769876810637,0.24460554,81500.0,81483.0,0.00015484]
[1769876811140,0.24460554,81499.0,81483.0,0.00015484]
[1769876812237,5.4e-07,81495.0,81472.0,0.1727442]
[1769876812438,0.66247806,81513.0,81501.0,0.012288]
[1769876812737,0.39528246,81532.0,81490.0,0.01229]
[1769876813044,0.39528246,81532.0,81502.0,0.12271293]
[1769876813045,0.29576246,81532.0,81502.0,0.12271293]
[1769876813246,0.29576246,81527.0,81490.0,0.01229]
[1769876813544,0.29576246,81525.0,81490.0,0.01229]
[1769876814134,0.29576246,81515.0,81480.0,0.012291]
[1769876814339,0.29576246,81515.0,81472.0,0.001]
[1769876814340,0.29576246,81513.0,81472.0,0.001]
[1769876814547,0.01229,81492.0,81472.0,0.001]
[1769876814740,4.185e-05,81491.0,81472.0,0.001]
[1769876814940,0.29580431,81491.0,81460.0,0.012294]
[1769876815936,4.185e-05,81491.0,81461.0,0.12272724]
[1769876816142,4.185e-05,81491.0,81480.0,0.012291]
[1769876816448,0.09952,81503.0,81480.0,0.012291]
[1769876817243,0.09952,81503.0,81489.0,0.01229]
[1769876817440,0.09952,81517.0,81493.0,0.012289]
[1769876817638,0.09952,81517.0,81496.0,0.012289]
[1769876817837,0.09952,81517.0,81478.0,0.012292]
[1769876818047,0.09952,81517.0,81495.0,0.012289]
[1769876818346,0.09952,81517.0,81470.0,0.012293]
[1769876818347,0.29576246,81516.0,81470.0,0.012293]
[1769876818544,0.29576246,81514.0,81470.0,0.012293]
[1769876818849,0.43694648,81513.0,81488.0,0.01229]
[1769876819048,0.14118402,81512.0,81488.0,0.01229]
[1769876819646,0.14118402,81512.0,81491.0,0.01229]
[1769876819944,0.14118402,81512.0,81498.0,0.012289]
[1769876820244,0.09952,81517.0,81479.0,0.012292]
[1769876820245,0.14118402,81511.0,81479.0,0.012292]
[1769876820448,0.09952,81517.0,81479.0,0.012292]
[1769876820449,0.14118402,81510.0,81479.0,0.012292]
[1769876820637,0.14118402,81509.0,81480.0,0.12269712]
[1769876820837,0.14118402,81508.0,81480.0,0.12269712]
[1769876821147,0.29576246,81514.0,81348.0,0.84303451]
[1769876821148,0.29576246,81506.0,81463.0,0.28776158]
[1769876821348,0.29576246,81504.0,81457.0,0.01242931]
[1769876821545,0.09952,81517.0,81446.0,0.005]
[1769876821546,0.29576246,81483.0,81447.0,0.012296]
[1769876821851,0.29576246,81475.0,81440.0,0.012297]
[1769876822045,0.29576246,81469.0,81437.0,0.09952]
[1769876822239,0.29576246,81463.0,81425.0,0.0123]
[1769876822548,0.29576246,81457.0,81419.0,0.012301]
[1769876822845,0.30806046,81439.0,81395.0,0.09738275]
[1769876823149,0.30806046,81439.0,81388.0,0.28776158]
[1769876823150,0.29576246,81433.0,81388.0,0.28776158]
[1769876823444,0.111818,81438.0,81387.0,0.09952]
[1769876823445,0.29576246,81428.0,81387.0,0.09952]
[1769876823747,0.29576246,81428.0,81403.0,0.012303]
[1769876824049,6.4e-07,81427.0,81421.0,0.0123]
[1769876824246,0.09952,81449.0,81421.0,0.0123]
[1769876824747,0.09952,81449.0,81386.0,0.28776158]
[1769876824748,0.29576246,81429.0,81386.0,0.28776158]
[1769876825048,0.29576246,81421.0,81384.0,0.13513273]
[1769876825242,0.29587565,81420.0,81384.0,0.13513273]
[1769876825444,0.29587565,81420.0,81383.0,0.09952]
[1769876825445,0.29576246,81410.0,81383.0,0.09952]
[1769876825749,0.29576246,81405.0,81363.0,0.012309]
[1769876825947,0.29576246,81403.0,81363.0,0.012309]
[1769876826447,0.012304,81400.0,81340.0,0.09956]
[1769876826652,0.12297048,81402.0,81340.0,0.09956]
[1769876826653,0.29576246,81387.0,81360.0,0.01231]
[1769876826841,0.29576246,81387.0,81345.0,0.1228637]
[1769876827042,0.29203878,81385.0,81341.0,0.012312]
[1769876827344,0.29203878,81383.0,81340.0,0.111873]
[1769876827547,0.29203878,81374.0,81340.0,0.09956]
[1769876827743,0.29203878,81366.0,81336.0,0.012313]
[1769876827939,0.09956,81365.0,81330.0,0.012314]
[1769876828140,0.00014159,81373.0,81347.0,0.00013431]
[1769876828345,0.00014159,81373.0,81318.0,0.061581]
[1769876828346,5.9e-07,81373.0,81356.0,0.00013431]
[1769876828544,5.9e-07,81373.0,81349.0,0.061558]
[1769876828744,5.9e-07,81373.0,81371.0,0.012308]
[1769876828941,0.29203878,81420.0,81377.0,0.012307]
[1769876829244,0.29203878,81409.0,81385.0,0.012306]
[1769876829445,0.29203878,81409.0,81367.0,0.0996]
[1769876829446,0.29203878,81409.0,81374.0,0.012307]
[1769876829652,0.29203878,81409.0,81374.0,0.00013431]
[1769876829946,0.00012575,81408.0,81378.0,0.00013431]
[1769876830152,0.00012575,81408.0,81367.0,0.0996]
[1769876830153,0.00012575,81408.0,81386.0,0.00013431]
[1769876830447,0.00012575,81408.0,81382.0,0.012306]
[1769876830755,7.5e-07,81408.0,81393.0,0.00013431]
[1769876830945,0.29203878,81422.0,81400.0,0.012304]
[1769876831250,0.29203878,81440.0,81410.0,0.012302]
[1769876831445,0.0996,81447.0,81400.0,0.34896725]
[1769876831645,0.29203878,81450.0,81416.0,0.012301]
[1769876832152,0.41488814,81449.0,81416.0,0.012301]
[1769876832346,0.41488814,81449.0,81389.0,0.0996]
[1769876832347,0.29203878,81448.0,81404.0,0.012303]
[1769876832551,0.29203878,81439.0,81389.0,0.0996]
[1769876832850,0.0996,81453.0,81391.0,0.012305]
[1769876832851,0.29203878,81436.0,81391.0,0.012305]
[1769876833246,0.12282975,81435.0,81391.0,0.012305]
[1769876833447,0.12282975,81435.0,81404.0,0.00013431]
[1769876833648,0.29203878,81449.0,81403.0,0.00013431]
[1769876833949,0.29203878,81449.0,81403.0,0.012303]
[1769876833950,0.12282975,81448.0,81403.0,0.012303]
[1769876834147,0.12282975,81448.0,81389.0,0.0996]
[1769876834148,0.29203878,81430.0,81390.0,0.012305]
[1769876834454,0.29203878,81430.0,81400.0,0.012304]
[1769876834646,0.29203878,81430.0,81394.0,0.012304]
[1769876834846,0.29203878,81428.0,81398.0,0.012304]
[1769876835148,0.29203878,81426.0,81398.0,0.012304]
[1769876835344,0.29203878,81426.0,81391.0,0.001]
[1769876835345,0.30433878,81426.0,81391.0,0.001]
[1769876835553,0.0996,81427.0,81384.0,0.00015726]
[1769876835554,0.29203878,81414.0,81384.0,0.00015726]
[1769876835847,0.29203878,81414.0,81368.0,0.0996]
[1769876835848,0.29203878,81410.0,81368.0,0.0996]
[1769876836051,0.29203878,81408.0,81368.0,0.0996]
[1769876836247,0.29203878,81406.0,81368.0,0.0996]
[1769876836649,0.29203878,81404.0,81368.0,0.0996]
[1769876836846,0.22246672,81407.0,81336.0,0.28758315]
[1769876836847,0.29203878,81391.0,81336.0,0.28758315]
[1769876837047,0.29203878,81389.0,81354.0,0.01231]
[1769876837249,0.29203878,81405.0,81342.0,0.28744725]
[1769876837449,0.30434178,81405.0,81367.0,0.012308]
[1769876837752,0.29203878,81403.0,81367.0,0.012308]
[1769876837955,0.29203878,81403.0,81375.0,0.012307]
[1769876838151,5.854e-05,81402.0,81375.0,0.012307]
[1769876838353,5.854e-05,81402.0,81368.0,0.012308]
[1769876838550,5.854e-05,81402.0,81390.0,0.012305]
[1769876838853,0.09964,81415.0,81390.0,0.012305]
[1769876839049,0.29203878,81414.0,81354.0,0.62192725]
[1769876839257,0.29203878,81412.0,81354.0,0.62192725]
[1769876839553,0.09964,81415.0,81368.0,0.001]
[1769876839554,0.29203878,81395.0,81368.0,0.001]
[1769876839755,0.29203878,81393.0,81368.0,0.001]
[1769876840353,0.29203878,81383.0,81345.0,0.012312]
[1769876840544,0.29203878,81376.0,81339.0,0.012313]
[1769876840749,0.29203878,81369.0,81336.0,0.0001359]
[1769876840950,0.061521,81399.0,81336.0,0.0001359]
[1769876840951,0.29203878,81367.0,81336.0,0.0001359]
[1769876841254,0.29203878,81372.0,81332.0,0.09964]
[1769876841556,0.29203878,81366.0,81333.0,0.01244831]
[1769876841757,0.29203878,81362.0,81332.0,0.09964]
[1769876841950,0.29203878,81361.0,81332.0,0.09964]
[1769876842146,0.30434878,81359.0,81332.0,0.09964]
[1769876842354,0.29203878,81359.0,81327.0,0.009314]
[1769876842553,0.29203878,81359.0,81331.0,0.012314]
[1769876842754,0.12293016,81358.0,81335.0,0.012313]
[1769876843056,0.12293016,81358.0,81336.0,0.00013431]
[1769876843358,0.00013538,81360.0,81349.0,0.00013431]
[1769876843660,0.29203878,81371.0,81353.0,0.012311]
[1769876843848,0.29203878,81371.0,81348.0,0.012311]
[1769876844048,0.12293091,81370.0,81348.0,0.012311]
[1769876844354,0.29203878,81371.0,81351.0,0.00013431]
[1769876844551,0.29203878,81371.0,81350.0,0.012311]
[1769876844749,0.29203878,81371.0,81352.0,0.00013431]
[1769876845061,0.12291127,81370.0,81351.0,0.00013431]
[1769876845249,0.41495005,81370.0,81341.0,0.00013431]
[1769876845446,0.41495005,81370.0,81349.0,0.001]
[1769876845650,0.29203878,81383.0,81359.0,0.00013431]
[1769876845852,0.29203878,81383.0,81349.0,0.001]
[1769876845853,0.29203878,81383.0,81353.0,0.012311]
[1769876846058,0.29203878,81383.0,81353.0,0.01244531]
[1769876846260,0.29203878,81383.0,81355.0,0.00013431]
[1769876846454,0.29203878,81383.0,81354.0,0.00013431]
[1769876846651,0.09964,81387.0,81353.0,0.00013431]
[1769876846652,0.29203878,81381.0,81353.0,0.00013431]
[1769876846959,0.29203878,81379.0,81345.0,0.012312]
[1769876847455,0.29203878,81364.0,81331.0,0.12289994]
[1769876847653,0.29203878,81362.0,81333.0,0.00013431]
[1769876847858,0.29203878,81361.0,81312.0,0.28744725]
[1769876848053,0.29203878,81357.0,81326.0,0.012315]
[1769876848254,0.29203878,81357.0,81310.0,0.10432558]
[1769876848255,0.30434878,81357.0,81317.0,0.012316]
[1769876848457,0.29203878,81347.0,81281.0,0.09968]
[1769876848659,0.29203878,81347.0,81263.0,1.17947266]
[1769876848660,0.29203878,81316.0,81263.0,0.002]
[1769876848857,0.061556,81352.0,81263.0,0.002]
[1769876848858,0.29203878,81314.0,81263.0,0.002]
[1769876849059,0.29203878,81333.0,81291.0,0.01232]
[1769876849365,0.12301863,81347.0,81301.0,0.28758156]
[1769876849658,0.29203878,81350.0,81328.0,0.012314]
[1769876849659,0.00014791,81346.0,81328.0,0.012314]
[1769876849859,0.00014791,81346.0,81329.0,0.09968]
[1769876849860,9.1e-07,81346.0,81329.0,0.09968]
[1769876850162,0.29203878,81330.0,81276.0,0.28744725]
[1769876850360,0.29203878,81320.0,81270.0,0.012323]
[1769876850562,0.29203878,81311.0,81268.0,0.09968]
[1769876850860,0.12294452,81319.0,81272.0,0.28744725]
[1769876851065,0.29203878,81334.0,81283.0,0.28744725]
[1769876851261,0.012314,81328.0,81270.0,0.28744725]
[1769876851453,0.29203878,81327.0,81270.0,0.28744725]
[1769876851761,0.29203878,81327.0,81293.0,0.01232]
[1769876851964,0.12310828,81326.0,81294.0,0.09968]
[1769876852163,0.41514706,81326.0,81294.0,0.09968]
[1769876852361,0.00010025,81326.0,81305.0,0.012318]
[1769876852659,0.00010025,81326.0,81283.0,0.002]
[1769876852660,0.29203878,81321.0,81283.0,0.002]
[1769876852856,0.1229861,81325.0,81255.0,0.09972]
[1769876852857,0.01232,81291.0,81255.0,0.09972]
[1769876853055,0.00014123,81290.0,81255.0,0.09972]
[1769876853256,0.4152221,81290.0,81256.0,0.012325]
[1769876853463,0.4152221,81290.0,81255.0,0.112045]
[1769876853763,0.12304209,81289.0,81255.0,0.09972]
[1769876853962,0.29203878,81288.0,81255.0,0.09972]
[1769876854363,0.12317198,81287.0,81255.0,0.09972]
[1769876854667,0.29203878,81286.0,81255.0,0.09972]
[1769876855157,0.29203878,81285.0,81255.0,0.09972]
[1769876855364,0.29203878,81285.0,81256.0,0.001]
[1769876855759,0.12304587,81284.0,81256.0,0.001]
[1769876855961,0.00012838,81287.0,81256.0,0.001]
[1769876855962,0.00012838,81287.0,81270.0,0.012323]
[1769876856157,0.29203878,81322.0,81258.0,0.28744725]
[1769876856367,0.29203878,81322.0,81262.0,0.28744725]
[1769876856666,0.29203878,81321.0,81283.0,0.012321]
[1769876856866,0.12304663,81322.0,81284.0,0.09972]
[1769876857067,0.28095533,81319.0,81285.0,0.09972]
[1769876857264,0.28095533,81319.0,81290.0,0.01232]
[1769876857660,0.28095533,81335.0,81285.0,0.09972]
[1769876857865,0.28095533,81335.0,81267.0,0.06162]
[1769876857866,0.28095533,81335.0,81282.0,0.29923928]
[1769876858071,0.12299669,81332.0,81294.0,0.29923928]
[1769876858367,0.28095533,81368.0,81315.0,0.012316]
[1769876858767,0.28095533,81346.0,81315.0,0.012316]
[1769876858967,0.29326733,81346.0,81309.0,0.012317]
[1769876859175,0.29326733,81346.0,81307.0,0.09972]
[1769876859176,0.12298837,81345.0,81307.0,0.09972]
[1769876859474,0.28095533,81344.0,81307.0,0.09972]
[1769876859667,0.012312,81343.0,81307.0,0.09972]
[1769876859869,0.012312,81343.0,81263.0,0.29923928]
[1769876859870,0.28095533,81317.0,81263.0,0.29923928]
[1769876860170,0.012313,81339.0,81275.0,0.012322]
[1769876860171,0.28095533,81311.0,81275.0,0.012322]
[1769876860377,0.28095533,81311.0,81283.0,0.012321]
[1769876860562,0.12301636,81310.0,81265.0,0.012324]
[1769876860880,0.29905718,81309.0,81264.0,0.09972]
[1769876861562,0.29905718,81307.0,81272.0,0.012323]
[1769876861763,0.29905718,81302.0,81265.0,0.012324]
[1769876862061,0.29905718,81302.0,81275.0,0.012322]
[1769876862265,0.29905718,81302.0,81264.0,0.09972]
[1769876862266,0.12302165,81301.0,81264.0,0.09972]
[1769876862570,0.12302165,81301.0,81269.0,0.012323]
[1769876863076,0.29905718,81316.0,81279.0,0.012322]
[1769876863269,0.29905718,81316.0,81265.0,0.2800359]
[1769876863471,0.12302392,81313.0,81273.0,0.2923589]
[1769876863678,0.29905718,81330.0,81291.0,0.01232]
[1769876863877,0.29905718,81330.0,81298.0,0.012319]
[1769876864071,0.12302392,81329.0,81302.0,0.012318]
[1769876864277,0.29905718,81330.0,81292.0,0.09976]
[1769876864481,0.12298005,81329.0,81305.0,0.012318]
[1769876864870,0.29905718,81330.0,81292.0,0.09976]
[1769876865075,0.29905718,81330.0,81300.0,0.012319]
[1769876865271,0.29905718,81328.0,81295.0,0.012319]
[1769876865466,0.29905718,81328.0,81304.0,0.012318]
[1769876865667,0.29905718,81328.0,81299.0,0.012319]
[1769876865870,0.12298459,81327.0,81305.0,0.001]
[1769876866076,0.29905718,81328.0,81306.0,0.012318]
[1769876866272,0.29905718,81342.0,81306.0,0.012318]
[1769876866478,0.29905718,81342.0,81305.0,0.001]
[1769876866775,0.29905718,81333.0,81300.0,0.012319]
[1769876867169,0.29905718,81331.0,81292.0,0.09976]
[1769876867370,0.29905718,81331.0,81293.0,0.01232]
[1769876867576,0.29905718,81331.0,81305.0,0.012318]
[1769876867981,0.29905718,81329.0,81295.0,0.012319]
[1769876868389,0.29905718,81329.0,81298.0,0.012319]
[1769876868582,0.122974,81328.0,81298.0,0.012319]
[1769876868880,0.29905718,81327.0,81298.0,0.012319]
[1769876869478,0.29905718,81327.0,81292.0,0.09976]
[1769876869479,0.29905718,81325.0,81294.0,0.01232]
[1769876869684,0.29905718,81325.0,81284.0,0.32436]
[1769876869685,0.29905718,81313.0,81261.0,0.2800359]
[1769876869882,0.29905718,81313.0,81283.0,0.012321]
[1769876870080,0.29905718,81313.0,81289.0,0.01232]
[1769876870081,0.12298232,81312.0,81289.0,0.01232]
[1769876870385,0.12298232,81312.0,81290.0,0.01232]
[1769876870778,0.29905718,81313.0,81290.0,0.01232]
[1769876871179,0.29905718,81313.0,81293.0,0.01232]
[1769876871379,0.39881718,81326.0,81293.0,0.01232]
[1769876871684,0.42205614,81325.0,81293.0,0.01232]
[1769876871880,0.42205614,81325.0,81285.0,0.09976]
[1769876872379,0.29905718,81325.0,81302.0,0.012318]
[1769876872580,0.12299366,81324.0,81294.0,0.012319]
[1769876872779,0.12299366,81324.0,81305.0,0.012318]
[1769876872980,0.29905718,81343.0,81286.0,0.2800359]
[1769876873186,0.29905718,81341.0,81307.0,0.012318]
[1769876873486,0.29905718,81337.0,81307.0,0.012318]
[1769876873887,0.12297929,81336.0,81307.0,0.012318]
[1769876874080,0.29905718,81335.0,81307.0,0.012318]
[1769876874781,0.42202589,81334.0,81307.0,0.012318]
[1769876874986,0.29905718,81333.0,81307.0,0.012318]
[1769876875186,0.29905718,81333.0,81306.0,0.09976]
[1769876875481,0.12297097,81332.0,81306.0,0.09976]
[1769876875686,0.12297097,81332.0,81306.0,0.112078]
[1769876875892,0.001,81341.0,81306.0,0.09976]
[1769876876089,0.30005718,81341.0,81314.0,0.012317]
[1769876876383,0.29905718,81338.0,81306.0,0.09976]
[1769876877189,0.29905718,81336.0,81306.0,0.09976]
[1769876877784,0.29905718,81334.0,81306.0,0.09976]
[1769876878090,0.24447174,81343.0,81306.0,0.09976]
[1769876878284,0.012312,81345.0,81310.0,0.012317]
[1769876878485,0.12297097,81336.0,81308.0,0.2800359]
[1769876878692,0.29905718,81345.0,81313.0,0.012317]
[1769876879184,0.29905718,81331.0,81287.0,0.14607412]
[1769876879489,0.12295737,81330.0,81299.0,0.012319]
[1769876879892,0.42201455,81330.0,81299.0,0.012319]
[1769876880389,0.29905718,81329.0,81299.0,0.012319]
[1769876880787,0.24447174,81340.0,81298.0,0.09976]
[1769876880985,0.29905718,81340.0,81308.0,0.012317]
[1769876881291,0.29905718,81340.0,81298.0,0.09976]
[1769876881292,0.12297929,81339.0,81311.0,0.012317]
[1769876881488,0.29905718,81340.0,81321.0,0.012315]
[1769876881789,0.29905718,81335.0,81304.0,0.09976]
[1769876882376,0.29905718,81332.0,81304.0,0.09976]
[1769876882578,0.29905718,81330.0,81304.0,0.09976]
[1769876883183,0.29905718,81330.0,81308.0,0.001]
[1769876883382,0.2031,81356.0,81308.0,0.001]
[1769876883383,0.29905718,81343.0,81308.0,0.001]
[1769876883585,0.29905718,81339.0,81308.0,0.001]
[1769876883785,0.12297551,81343.0,81308.0,0.001]
[1769876883989,0.29905718,81337.0,81304.0,0.10076]